Workbook

Sheet 7R
C8: Type your name: | G8: Model: | I8: Transmission: | K8: Front axle:
G9: 7210R | I9: CommandQuad | K9: 1150 MFWD
G10: =INDEX(model_7_w,MATCH(G9,model_7,0)) -> 0 | I10: =INDEX(tran_7_w,MATCH(I9,tran_7,0)) -> 0 | K10: =INDEX(FA_7_w,MATCH(K9,FA_7,0)) -> 7358
G11: =INDEX(model_7_s,MATCH(G9,model_7,0)) -> 0.397 | I11: =INDEX(tran_7_s,MATCH(I9,tran_7,0)) -> 0.4 | K11: =INDEX(FA_7_s,MATCH(K9,FA_7,0)) -> 0.39
G12: =INDEX(hp_7,MATCH(G9,model_7,0)) -> 210
C14: Name of analysis: | G14: Front hitch: | I14: Front PTO: | K14: Fuel level:
G15: Not Included | I15: Not Included | K15: Half
G16: =INDEX(hitch_7_w,MATCH(G15,hitch_7,0)) -> 0 | I16: =INDEX(PTO_7_w,MATCH(I15,PTO_7,0)) -> 0 | K16: =IF(I9="IVT",INDEX(fuel_7_w_IVT,MATCH(K15,fuel_7,0)),IF(I9="e23",INDEX(fuel_7_w_e23,MATCH(K15,fuel_7,0)),INDEX(fuel_7_w,MATCH(K15,fuel_7,0)))) -> 227.71725
G17: =INDEX(hitch_7_s,MATCH(G15,hitch_7,0)) -> 1 | I17: =INDEX(PTO_7_s,MATCH(I15,PTO_7,0)) -> 1.201 | K17: =INDEX(fuel_7_s,MATCH(K15,fuel_7,0)) -> 0.4489
E19: Front wheels & tires | I19: Rear wheels & tires
E20: Group 42 | I20: Group 47
E21: Single: | I21: Single: | K21: Dual:
E22: 420/90R30 | I22: 480/80R46 | K22: 480/80R46
E23: =IF(E20="Group 42",INDEX(G42_7_w,MATCH(E22,G42_7,0)),IF(E20="Group 43", INDEX(G43_7_w,MATCH(E22,G43_7,0)),IF(E20="Group 44",INDEX(G44_7_w,MATCH(E22,G44_7,0)),0))) -> 354 | I23: =IF(I20="Group 47",INDEX(G47_1_7_w,MATCH(I22,G47_1_7,0)),IF(I20="Group 48", INDEX(G48_1_7_w,MATCH(I22,G48_1_7,0)),IF(I20="Group 49",INDEX(G49_1_7_w,MATCH(I22,G49_1_7,0)),0))) -> 1004 | K23: =IF(I20="Group 47",INDEX(G47_2_7_w,MATCH(K22,G47_2_7,0)),IF(I20="Group 48", INDEX(G48_2_7_w,MATCH(K22,G48_2_7,0)),IF(I20="Group 49",INDEX(G49_2_7_w,MATCH(K22,G49_2_7,0)),0))) -> 880
E24: 1 | I24: 0 | K24: 0
C26: Choose a ballast package code -OR- build a custom package with the options to the right | E26: Front ballast | I26: Enter any additional ballast
E27: Weight support: | G27: Suitcase weights: | I27: Front (kg): | K27: Rear (kg):
C28: 1 | E28: Not Included | G28: None | I28: 0 | K28: 0
C29: 1 | E29: =INDEX(FWS_7_w,MATCH(E28,FWS_7,0)) -> 0 | G29: =INDEX(SW_7_w,MATCH(G28,SW_7,0)) -> 0 | I29: =I28 -> 0 | K29: =K28 -> 0
E30: =INDEX(FWS_7_s,MATCH(E28,FWS_7,0)) -> 1.3443 | G30: =INDEX(SW_7_s,MATCH(G28,SW_7,0)) -> 1.4359 | I30: 1 | K30: 0
E32: Rear wheel weights
E33: 72 kg: | G33: 205 kg: | I33: 625 kg: | K33: 970 kg:
E34: None | G34: None | I34: None | K34: None
E35: =INDEX(w72_8_w,MATCH(E34,w72_8,0)) -> 0 | G35: =INDEX(w205_8_w,MATCH(G34,w205_8,0)) -> 0 | I35: =INDEX(w625_8_w,MATCH(I34,w625_8,0)) -> 0 | K35: =INDEX(w970_8_w,MATCH(K34,w970_8,0)) -> 0
E36: 0 | G36: 0 | I36: 0 | K36: 0
C39: Total weight: | E39: =C48& " kg "&ROUND(C48*2.20462,1)& " lb" -> 9824 kg 21658.2 lb
C40: Weight / PTO-hp (SAE): | E40: =ROUND(C48/I48,0)& " kg/PTO-hp "& ROUND((C48*2.20462)/I48,0) &" lb/PTO-hp" -> 58 kg/PTO-hp 127 lb/PTO-hp
C41: Weight / Engine power: | E41: =ROUND(C48/G12,0)& " kg/hp "& ROUND((C48*2.20462)/G12,0) &" lb/hp" -> 47 kg/hp 103 lb/hp
C42: Front axle weight: | E42: =E48&" kg "&ROUND(E48*2.20462,0)& " lb" -> 3326 kg 7333 lb
C43: Rear axle weight: | E43: =C48-E48&" kg "&ROUND((C48-E48)*2.20462,0)& " lb" -> 6498 kg 14326 lb | G43: =G48 -> 0.339 | I43: =100%-G43 -> 0.661 | K43: =TODAY() -> 2016-05-26
C48: =ROUND(SUM(G10,I10,K10,G16,I16,K16,E23,I23,K23,E29,G29,I29,K29,E35,G35,I35,K35),0) -> 9824 | E48: =ROUND(SUM(G10*G11,I10*I11,K10*K11,G16*G17,I16*I17,K16*K17,E23*E24,I23*I24,K23*K24,E29*E30,G29*G30,I29*I30,K29*K30,E35*E36,G35*G36,I35*I36,K35*K36),0) -> 3326 | G48: =ROUND(E48/C48,3) -> 0.339 | I48: =INDEX(PTOhp_7,MATCH(G9,model_7,0)) -> 170

Sheet 8R
C8: Type your name: | G8: Model: | I8: Transmission: | K8: Front axle:
G9: 8245R | I9: 16 PST | K9: 1300 MFWD
G10: =IF(K9="ILS",INDEX(model_8_w_ILS,MATCH(G9,model_8,0)),INDEX(model_8_w,MATCH(G9,model_8,0))) -> 0 | I10: =IF(K9="ILS",INDEX(tran_8_w_ILS,MATCH(I9,tran_8,0)),IF(K9="1500 MFWD",INDEX(tran_8_w_1500,MATCH(I9,tran_8,0)),INDEX(tran_8_w,MATCH(I9,tran_8,0)))) -> 303.18 | K10: =INDEX(FA_8_w,MATCH(K9,FA_8,0)) -> 8727.48
G11: =INDEX(model_8_s,MATCH(G9,model_8,0)) -> 0.478 | I11: =INDEX(tran_8_s,MATCH(I9,tran_8,0)) -> 0.474 | K11: =IF(I9="e23",INDEX(FA_8_s_e23,MATCH(K9,FA_8,0)),IF(I9="IVT",INDEX(FA_8_s_IVT,MATCH(K9,FA_8,0)),(INDEX(FA_8_s,MATCH(K9,FA_8,0))))) -> 0.449
G12: =INDEX(hp_8,MATCH(G9,model_8,0)) -> 245
C14: Name of analysis: | G14: Front hitch: | I14: Front PTO: | K14: Fuel level:
G15: Not Included | I15: Not Included | K15: Half
G16: =INDEX(hitch_8_w,MATCH(G15,hitch_8,0)) -> 0 | I16: =INDEX(PTO_8_w,MATCH(I15,PTO_8,0)) -> 0 | K16: =IF(G20="Group 49",INDEX(fuel_8_w_G49,MATCH(K15,fuel_8,0)),INDEX(fuel_8_w,MATCH(K15,fuel_8,0))) -> 288.06725
G17: =INDEX(hitch_8_s,MATCH(G15,hitch_8,0)) -> 1.4846 | I17: =INDEX(PTO_8_s,MATCH(I15,PTO_8,0)) -> 1.4754 | K17: =INDEX(fuel_8_s,MATCH(K15,fuel_8,0)) -> 0.39
C19: Front wheels & tires | G19: Rear wheels & tires
C20: Group 42 | G20: Group 47
C21: Single: | E21: Dual: | G21: Single: | I21: Dual: | K21: Triple:
C22: 420/90R30 | E22: None | G22: 480/80R46 | I22: 480/80R46 | K22: None
C23: =IF(C20="Group 42",INDEX(G42_1_w,MATCH(C22,G42_1,0)),IF(C20="Group 43", INDEX(G43_1_w,MATCH(C22,G43_1,0)),IF(C20="Group 44",INDEX(G44_1_w,MATCH(C22,G44_1,0)),0))) -> 354 | E23: =IF(C20="Group 42",INDEX(G42_2_w,MATCH(E22,G42_2,0)),IF(C20="Group 43", INDEX(G43_2_w,MATCH(E22,G43_2,0)),IF(C20="Group 44",INDEX(G44_2_w,MATCH(E22,G44_2,0)),0))) -> 0 | G23: =IF(G20="Group 47",INDEX(G47_1_w,MATCH(G22,G47_1,0)),IF(G20="Group 48", INDEX(G48_1_w,MATCH(G22,G48_1,0)),IF(G20="Group 49",INDEX(G49_1_w,MATCH(G22,G49_1,0)),0))) -> 1004 | I23: =IF(G20="Group 47",INDEX(G47_2_w,MATCH(I22,G47_2,0)),IF(G20="Group 48", INDEX(G48_2_w,MATCH(I22,G48_2,0)),IF(G20="Group 49",INDEX(G49_2_w,MATCH(I22,G49_2,0)),0))) -> 880 | K23: =IF(G20="Group 47",INDEX(G47_3_w,MATCH(K22,G47_3,0)),IF(G20="Group 48", INDEX(G48_3_w,MATCH(K22,G48_3,0)),IF(G20="Group 49",INDEX(G49_3_w,MATCH(K22,G49_3,0)),0))) -> 0
C24: 1 | E24: 1 | G24: 0 | I24: 0 | K24: 0
C26: Choose a ballast package code -OR- build a custom package with the options to the right | E26: Front ballast | I26: Enter any additional ballast
E27: Weight support: | G27: Suitcase weights: | I27: Front (kg): | K27: Rear (kg):
C28: 1 | E28: Not Included | G28: None | I28: 0 | K28: 0
C29: 1 | E29: =INDEX(FWS_8_w,MATCH(E28,FWS_8,0)) -> 0 | G29: =INDEX(SW_8_w,MATCH(G28,SW_8,0)) -> 0 | I29: =I28 -> 0 | K29: =K28 -> 0
E30: =INDEX(FWS_8_s,MATCH(E28,FWS_8,0)) -> 1.47015 | G30: =INDEX(SW_8_s,MATCH(G28,SW_8,0)) -> 1.563 | I30: 1 | K30: 0
E32: Rear wheel weights
E33: 72 kg: | G33: 205 kg: | I33: 625 kg: | K33: 970 kg:
E34: None | G34: None | I34: None | K34: None
E35: =INDEX(w72_8_w,MATCH(E34,w72_8,0)) -> 0 | G35: =INDEX(w205_8_w,MATCH(G34,w205_8,0)) -> 0 | I35: =INDEX(w625_8_w,MATCH(I34,w625_8,0)) -> 0 | K35: =INDEX(w970_8_w,MATCH(K34,w970_8,0)) -> 0
E36: 0 | G36: 0 | I36: 0 | K36: 0
C39: Total weight: | E39: =C47& " kg "&ROUND(C47*2.20462,0)& " lb" -> 11557 kg 25479 lb
C40: Weight / PTO-hp (SAE): | E40: =ROUND(C47/I47,0)& " kg/PTO-hp "& ROUND((C47*2.20462)/I47,0) &" lb/PTO-hp" -> 58 kg/PTO-hp 127 lb/PTO-hp
C41: Weight / Engine power: | E41: =ROUND(C47/G12,0)& " kg/hp "& ROUND((C47*2.20462)/G12,0) &" lb/hp" -> 47 kg/hp 104 lb/hp
C42: Front axle weight: | E42: =E47&" kg "&ROUND(E47*2.20462,0)& " lb" -> 4529 kg 9985 lb
C43: Rear axle weight: | E43: =C47-E47&" kg "&ROUND((C47-E47)*2.20462,0)& " lb" -> 7028 kg 15494 lb | G43: =G47 -> 0.392 | I43: =100%-G43 -> 0.608 | K43: =TODAY() -> 2016-05-26
C47: =ROUND(SUM(G10,I10,K10,G16,I16,K16,C23,E23,G23,I23,K23,E29,G29,I29,K29,E35,G35,I35,K35),0) -> 11557 | E47: =ROUND(SUM(G10*G11,I10*I11,K10*K11,G16*G17,I16*I17,K16*K17,C23*C24,E23*E24,G23*G24,I23*I24,K23*K24,E29*E30,G29*G30,I29*I30,K29*K30,E35*E36,G35*G36,I35*I36,K35*K36),0) -> 4529 | G47: =ROUND(E47/C47,3) -> 0.392 | I47: =INDEX(PTOhp_8,MATCH(G9,model_8,0)) -> 200

Sheet 8RT
C8: Type your name: | G8: Model: | I8: Transmission: | K8: Rear axle:
G9: 8370RT | I9: IVT | K9: 120 in
G10: =INDEX(model_8T_w,MATCH(G9,model_8T,0)) -> 0 | I10: =INDEX(tran_8T_w,MATCH(I9,tran_8T,0)) -> 12752.52 | K10: =INDEX(RA_8T_w,MATCH(K9,RA_8T,0)) -> 918.71
G11: =INDEX(model_8T_s,MATCH(G9,model_8T,0)) -> 0 | I11: =INDEX(tran_8T_s,MATCH(I9,tran_8T,0)) -> 0.72 | K11: 0
G12: =INDEX(hp_8T,MATCH(G9,model_8T,0)) -> 370
C14: Name of analysis: | G14: Rear drive wheels: | I14: Tracks: | K14: Fuel level:
G15: Wide | I15: 25 in, 6500 Series | K15: Half
G16: =INDEX(rdw_8T_w,MATCH(G15,rdw_8T,0)) -> 1259.73 | I16: =INDEX(tracks_8T_w,MATCH(I15,tracks_8T,0)) -> 1252 | K16: =INDEX(fuel_8T_w,MATCH(K15,fuel_8T,0)) -> 337.34
G17: 0 | I17: =INDEX(tracks_8T_s,MATCH(I15,tracks_8T,0)) -> 0.5 | K17: =INDEX(fuel_8T_s,MATCH(K15,fuel_8T,0)) -> 0.475
C19: Front ballast
C20: Weight support: | E20: Suitcase weights: | G20: 36-kg idler: | I20: 72-kg idler: | K20: 205-kg idler:
C21: Not Included | E21: None | G21: None | I21: None | K21: None
C22: =INDEX(FWS_8T_w,MATCH(C21,FWS_8T,0)) -> 0 | E22: =INDEX(SW_8T_w,MATCH(E21,SW_8T,0)) -> 0 | G22: =INDEX(w36_8T_w,MATCH(G21,w36_8T,0)) -> 0 | I22: =INDEX(w72_8T_w,MATCH(I21,w72_8T,0)) -> 0 | K22: =INDEX(w205_8T_w,MATCH(K21,w205_8T,0)) -> 0
C23: =INDEX(FWS_8T_s,MATCH(C21,FWS_8T,0)) -> 1.79165 | E23: =INDEX(SW_8T_s,MATCH(E21,SW_8T,0)) -> 1.905 | G23: 1 | I23: 1 | K23: 1
I25: Enter any additional ballast
I26: Front (kg): | K26: Rear (kg):
I27: 0 | K27: 0
I28: =I27 -> 0 | K28: =K27 -> 0
I29: 1 | K29: 0
C32: Total weight: | E32: =C40& " kg "&ROUND(C40*2.20462,0)& " lb" -> 16520 kg 36420 lb
C33: Weight / PTO-hp (SAE): | E33: =ROUND(C40/I40,0)& " kg/PTO-hp "& ROUND((C40*2.20462)/I40,0) &" lb/PTO-hp" -> 54 kg/PTO-hp 118 lb/PTO-hp
C34: Weight / Engine power: | E34: =ROUND(C40/G12,0)& " kg/hp "& ROUND((C40*2.20462)/G12,0) &" lb/hp" -> 45 kg/hp 98 lb/hp
C35: Front axle weight: | E35: =E40&" kg "&ROUND(E40*2.20462,0)& " lb" -> 9968 kg 21976 lb
C36: Rear axle weight: | E36: =C40-E40&" kg "&ROUND((C40-E40)*2.20462,0)& " lb" -> 6552 kg 14445 lb | G36: =G40 -> 0.603 | I36: =100%-G36 -> 0.397 | K36: =TODAY() -> 2016-05-26
C40: =ROUND(SUM(G10,I10,K10,G16,I16,K16,C22,E22,G22,I22,K22,I28,K28),0) -> 16520 | E40: =ROUND(SUM(G10*G11,I10*I11,K10*K11,G16*G17,I16*I17,K16*K17,C22*C23,E22*E23,G22*G23,I22*I23,K22*K23,I28*I29,K28*K29),0) -> 9968 | G40: =ROUND(E40/C40,3) -> 0.603 | I40: =INDEX(PTOhp_8T,MATCH(G9,model_8T,0)) -> 308

Sheet 7R Option Weights (hidden)
B3: kg total | C3: % front axle | D3: compatibility
A4: Model | D4: engine hp | E4: PTO hp
A5: 7210R | B5: 0 | C5: 0.397 | D5: 210 | E5: 170
A6: 7230R | B6: 0 | C6: 0.397 | D6: 230 | E6: 189
A7: 7250R | B7: 261 | C7: 0.397 | D7: 250 | E7: 205
A8: 7270R | B8: 261 | C8: 0.397 | D8: 270 | E8: 224
A9: 7290R | B9: 514 | C9: 0.397 | D9: 290 | E9: 242
A10: 7310R | B10: 514 | C10: 0.397 | D10: 310 | E10: 260
A12: Transmission
A13: CommandQuad | B13: 0 | C13: 0.4 | D13: N/A on 7250R +
A14: e23 | B14: 472 | C14: 0.397
A15: IVT | B15: 407 | C15: 0.397
A17: Front Axle
A18: 1150 MFWD | B18: 7358 | C18: 0.39 | D18: N/A on 7230R +
A19: 1300 MFWD | B19: 7433 | C19: 0.39 | D19: N/A on 7210R
A20: TLS | B20: 7584 | C20: 0.4
A21: TLS w/ front brakes | B21: 7678 | C21: 0.407
A23: Front 3-Point Hitch
A24: Not Included | B24: 0 | C24: 1
A25: Standard (carrier) | B25: 479.1 | C25: 1.2579
A26: Premium (ground) | B26: 593.2 | C26: 1.2293
A28: Front PTO
A29: Not Included | B29: 0 | C29: 1.201
A30: Included | B30: 187.5 | C30: 1.201
A32: Fuel level | B32: CQ | D32: IVT | E32: e23 | G32: Diesel + DEF
A33: Empty | B33: 0 | C33: 0.4489 | D33: 0 | E33: 0 | G33: CQ: diesel volume of 508L at .85kg/L
A34: Half | B34: =0.5*B35 -> 227.71725 | C34: 0.4489 | D34: =0.5*D35 -> 239.82975 | E34: =0.5*E35 -> 220.49225 | G34: IVT avg: diesel volume of 531.5 at .85kg/L
A35: Full | B35: =(503*0.85)+(25.7*1.085) -> 455.4345 | C35: 0.4489 | D35: =(531.5*0.85)+(25.7*1.085) -> 479.6595 | E35: =(486*0.85)+(25.7*1.085) -> 440.9845 | G35: e23 avg: diesel volume of 486L at .85kg/L
G36: def volume of 25.7 L at 1.085 kg/L
A37: Front Weight Support
A38: Not Included | B38: 0 | C38: 1.3443
A39: Included | B39: 124 | C39: 1.3443
A41: Front Suitcase Weights
A42: None | B42: 0 | C42: 1.4359
A43: 4 | B43: =43*A43 -> 172 | C43: 1.4359
A44: 8 | B44: =43*A44 -> 344 | C44: 1.4359
A45: 12 | B45: 516 | C45: 1.4359
A46: 16 | B46: 688 | C46: 1.4359
A47: 20 | B47: =43*A47 -> 860 | C47: 1.4359
A48: 24 | B48: =43*A48 -> 1032 | C48: 1.4359
A50: Rear Wheel Weights | B50: ranges defined on 8R tab
A51: 72 kg
A52: None | B52: 0 | C52: 0
A53: One Pair | B53: 144 | C53: 0
A54: 205 kg
A55: None | B55: 0 | C55: 0
A56: One Pair | B56: 410 | C56: 0
A57: Two Pairs | B57: =B56*2 -> 820 | C57: 0
A58: Three Pairs | B58: =B56*3 -> 1230 | C58: 0
A59: Four Pairs | B59: =B56*4 -> 1640 | C59: 0
A60: Five Pairs | B60: =B56*5 -> 2050 | C60: 0
A61: 625 kg
A62: None | B62: 0 | C62: 0
A63: One Pair | B63: 1250 | C63: 0
A64: 970 kg
A65: None | B65: 0 | C65: 0
A66: One Pair | B66: 1940 | C66: 0
A68: Ballast packages
A69: None
A70: 8935
A71: 8936
A72: 8937
A74: Front wheels
A75: G42
A76: 290/90R38 | B76: 410
A77: 320/85R38 | B77: 440
A78: 600/65R28 | B78: 500
A79: 380/85R34 | B79: 406
A80: 420/90R30 | B80: 354
A81: 480/70R30 | B81: 420
A82: 540/65R30 | B82: 460
A83: 600/65R28 | B83: 500
A84: G43
A85: 320/80R42 | B85: 510
A86: 380/80R38 | B86: 512
A87: 420/85R34 | B87: 520
A88: 480/70R34 | B88: 580
A89: 540/65R34 | B89: 580
A90: 600/70R30 | B90: 530
A91: IF600/70R30 | B91: 588
A92: G44
A93: 380/80R42 | B93: 618
A94: 420/85R38 | B94: 560
A95: 620/75R30 | B95: 700
A96: IF620/75R30 | B96: 679.46
A98: Rear wheels
A99: G47 single
A100: 320/90R50 | B100: 930
A101: 320/90R54 | B101: 1060
A102: 380/80R46 | B102: 870
A103: 380/90R50 | B103: 990
A104: 420/80R46 | B104: 920
A105: 480/80R46 | B105: 1004
A106: 520/85R42 | B106: 1070
A107: 620/70R42 | B107: 1258
A108: 650/65R42 | B108: 1220
A109: 710/70R38 | B109: 1298
A110: 710/70R38HD | B110: 1382
A111: G48 single
A112: 380/90R54 | B112: 1020
A113: 480/80R50 | B113: 1100
A114: 520/85R46 | B114: 1160
A115: 620/70R46 | B115: 1220
A116: 650/85R38 | B116: 1320
A117: IF650/85R38 | B117: 1379
A118: 710/70R42 | B118: 1400
A119: 710/70R42HD | B119: 1406
A120: IF710/70R42 | B120: 1441.79
A121: 800/70R38 | B121: 1571
A122: G49 single
A123: 480/95R50 | B123: 1177.42
A124: 710/75R42 | B124: 1435
A125: IF710/75R42 | B125: 1453.79
A126: G47 dual
A127: None | B127: 0
A128: 320/90R50 | B128: 780
A129: 320/90R54 | B129: 930
A130: 380/80R46 | B130: 740
A131: 380/90R50 | B131: 890
A132: 420/80R46 | B132: 790
A133: 480/80R46 | B133: 880
A134: 520/85R42 | B134: 980
A135: 620/70R42 | B135: 1146
A136: 710/70R38 | B136: 1172
A137: 710/70R38HD | B137: 1256
A138: G48 dual
A139: None | B139: 0
A140: 380/90R54 | B140: 920
A141: 480/80R50 | B141: 910
A142: 520/85R46 | B142: 1070
A143: 620/70R46 | B143: 1130
A144: 650/85R38 | B144: 1210
A145: 710/70R42 | B145: 1328
A146: 710/70R42HD | B146: 1334
A147: 800/70R38 | B147: 1459
A148: G49 dual
A149: None | B149: 0
A150: 480/95R50 | B150: 1074
A151: 710/75R42 | B151: 1393

Sheet 8R Option Weights (hidden)
B3: kg total | C3: % front axle | D3: compatibility
A4: Model | D4: hp | E4: PTO-hp | F4: Weight if ILS
A5: 8245R | B5: 0 | C5: 0.478 | D5: 245 | E5: 200 | F5: 0
A6: 8270R | B6: 0 | C6: 0.478 | D6: 270 | E6: 225 | F6: 0
A7: 8295R | B7: 22.7 | C7: 0.477 | D7: 295 | E7: 247 | F7: 22.7
A8: 8320R | B8: 181.4 | C8: 0.478 | D8: 320 | E8: 269 | F8: 181.4
A9: 8345R | B9: 181.4 | C9: 0.484 | D9: 345 | E9: 291 | F9: 260.9
A10: 8370R | B10: 181.4 | C10: 0.484 | D10: 370 | E10: 313 | F10: 260.9
A11: 8400R | B11: 181.4 | C11: 0.484 | D11: 400 | E11: 313 | F11: 260.9
A13: Transmission | B13: 1300 MFWD | D13: 1500 MFWD | E13: ILS
A14: 16 PST | B14: 303.18 | C14: 0.474 | D14: 356.97 | E14: 392.64
A15: e23 | B15: 0 | C15: 0.501 | D15: 0 | E15: 0
A16: IVT | B16: 341.36 | C16: 0.457 | D16: 365.42 | E16: 445.16
A18: Front Axle | C18: 16 PST | D18: e23 | E18: IVT
A19: 1300 MFWD | B19: 8727.48 | C19: 0.449 | D19: 0.474 | E19: 0.428
A20: 1500 MFWD | B20: 9222.87 | C20: 0.48 | D20: 0.503 | E20: 0.456
A21: ILS | B21: 9452.84 | C21: 0.494 | D21: 0.512 | E21: 0.474
A23: Front 3-Point Hitch
A24: Not Included | B24: 0 | C24: 1.4846 | E24: ILS wheelbase: 3050
A25: Included | B25: 709.24475 | C25: 1.4846 | D25: Requires ILS
A27: Front PTO
A28: Not Included | B28: 0 | C28: 1.4754 | E28: assuming ILS: 3050
A29: Included | B29: 187.5 | C29: 1.4754
A31: Fuel level | B31: G47/48 | D31: G49 | F31: Diesel + DEF
A32: Empty | B32: 0 | C32: 0.39 | D32: 0 | F32: G47/48: diesel volume of 645 L at .85kg/L
A33: Half | B33: =0.5*B34 -> 288.06725 | C33: 0.39 | D33: =0.5*D34 -> 305.49225 | F33: G49: diesel volume of 686 L at .85kg/L
A34: Full | B34: =(645*0.85)+(25.7*1.085) -> 576.1345 | C34: 0.39 | D34: =(686*0.85)+(25.7*1.085) -> 610.9845 | F34: def volume of 25.7 L at 1.085 kg/L
A36: Front Weight Support
A37: Not Included | B37: 0 | C37: 1.47015 | E37: avg wheelbase: 3065
A38: Included | B38: 173 | C38: 1.47015
A40: Front Suitcase Weights
A41: None | B41: 0 | C41: 1.563 | E41: avg wheelbase: 3065
A42: 4 | B42: =43*A42 -> 172 | C42: 1.563
A43: 8 | B43: =43*A43 -> 344 | C43: 1.563
A44: 12 | B44: 516 | C44: 1.563
A45: 16 | B45: 688 | C45: 1.563
A46: 22 | B46: =43*A46 -> 946 | C46: 1.563
A48: Rear Wheel Weights
A49: 72 kg
A50: None | B50: 0 | C50: 0
A51: One pair | B51: 144 | C51: 0
A52: 205 kg
A53: None | B53: 0 | C53: 0
A54: One pair | B54: 410 | C54: 0
A55: Two pairs | B55: =B54*2 -> 820 | C55: 0
A56: Three pairs | B56: =B54*3 -> 1230 | C56: 0
A57: Four pairs | B57: =B54*4 -> 1640 | C57: 0
A58: Five pairs | B58: =B54*5 -> 2050 | C58: 0
A59: 625 kg
A60: None | B60: 0 | C60: 0
A61: One pair | B61: 1250 | C61: 0
A62: 970 kg
A63: None | B63: 0 | C63: 0
A64: One pair | B64: 1940 | C64: 0
A66: Ballast packages
A67: None
A68: 8930
A69: 8931
A70: 8933
A71: 8932
A72: 8934
A73: 8938
A75: Front wheels
A76: G42 single
A77: 320/85R38 | B77: 440
A78: 380/85R34 | B78: 406
A79: 420/90R30 | B79: 354
A80: 480/70R30 | B80: 420
A81: 600/65R28 | B81: 500
A82: G42 dual
A83: None | B83: 0
A84: 320/85R38 | B84: 756.97
A85: 380/85R34 | B85: 722.97
A86: G43 single
A87: 320/80R42 | B87: 510
A88: 380/80R38 | B88: 512
A89: 420/85R34 | B89: 520
A90: 480/70R34 | B90: 580
A91: 540/65R34 | B91: 580
A92: 600/70R30 | B92: 530
A93: IF320/80R42 | B93: 475.65
A94: IF380/80R38 | B94: 518.13
A95: IF420/85R34 | B95: 518.13
A96: IF600/70R30 | B96: 588
A97: VF420/85R34 | B97: 520
A98: G43 dual
A99: None | B99: 0
A100: 320/80R42 | B100: 826.97
A101: 380/80R38 | B101: 828.97
A102: 420/85R34 | B102: 836.97
A103: 480/70R34 | B103: 896.97
A104: IF320/80R42 | B104: 792.61
A105: IF380/80R38 | B105: 835.09
A106: IF420/85R34 | B106: 835.09
A107: G44 single
A108: 380/80R42 | B108: 570
A109: 420/85R38 | B109: 560
A110: 540/75R34 | B110: 568
A111: 600/65R34 | B111: 636.37
A112: 620/75R30 | B112: 728
A113: 650/60R34 | B113: 704.69
A114: IF620/75R30 | B114: 730
A115: IF650/60R34 | B115: 710
A116: G44 dual
A117: None | B117: 0
A118: 420/85R38 | B118: 876.97
A120: Front group size
A121: Group 42
A122: Group 43
A123: Group 44
A125: Rear group size
A126: Group 47
A127: Group 48
A128: Group 49
A130: Rear wheels
A131: G47 single
A132: 480/80R46 | B132: 1004
A133: 520/85R42 | B133: 1070
A134: 620/70R42 | B134: 1258
A135: 650/65R42 | B135: 1220
A136: 650/75R38 | B136: 1292
A137: 710/70R38 | B137: 1298
A138: IF710/70R38 | B138: 1369.75
A139: G47 dual
A140: None | B140: 0
A141: 320/90R54 | B141: 930
A142: 380/90R50 | B142: 890
A143: 480/80R46 | B143: 880
A144: 520/85R42 | B144: 980
A145: 620/70R42 | B145: 1146
A146: 710/70R38 | B146: 1172
A147: IF710/70R38 | B147: 1261.4
A148: G47 triple
A149: None | B149: 0
A150: 320/90R54 | B150: 930
A151: 380/90R50 | B151: 920
A152: 480/80R46 | B152: 880
A153: G48 single
A154: 320/105R54 | B154: 1160
A155: 380/90R54 | B155: 1020
A156: 480/80R50 | B156: 1100
A157: 520/85R46 | B157: 1160
A158: 620/70R46 | B158: 1220
A159: 650/85R38 | B159: 1320
A160: 710/70R42 | B160: 1400
A161: 800/70R38 | B161: 1530
A162: IF480/80R50 | B162: 1304.33
A163: IF650/85R38 | B163: 1377.11
A164: IF710/70R42 | B164: 1647.25
A165: IF800/70R38 | B165: 1622.71
A166: G48 dual
A167: None | B167: 0
A168: 320/105R54 | B168: 1044
A169: 380/90R54 | B169: 920
A170: 480/80R50 | B170: 910
A171: 520/85R46 | B171: 1070
A172: 620/70R46 | B172: 1130
A173: 650/85R38 | B173: 1210
A174: 710/70R42 | B174: 1328
A175: 800/70R38 | B175: 1410
A176: IF480/80R50 | B176: 1120.51
A177: IF650/85R38 | B177: 1291.8
A178: IF710/70R42 | B178: 1385.87
A179: IF800/70R38 | B179: 1514.36
A180: VF480/80R50 | B180: 1130
A181: G48 triple
A182: None | B182: 0
A183: 320/105R54 | B183: 1044
A184: 480/80R50 | B184: 910
A185: G49 single
A186: 480/95R50 | B186: 1266
A187: 710/75R42 | B187: 1482
A188: 900/60R42 | B188: 1749.32
A189: IF480/95R50 | B189: 1366.6
A190: IF710/75R42 | B190: 1457.51
A191: IF900/60R42 | B191: 1750
A192: G49 dual
A193: None | B193: 0
A194: 480/95R50 | B194: 1074
A195: 710/75R42 | B195: 1390
A196: IF480/95R50 | B196: 1182.77
A197: G49 triple
A198: None | B198: 0

Sheet 8RT Option Weights (hidden)
B3: kg total | C3: % front axle | D3: compatibility
A4: Model | D4: hp | E4: PTO-hp
A5: 8320RT | B5: 0 | C5: 0 | D5: 320 | E5: 264
A6: 8345RT | B6: 0 | C6: 0 | D6: 345 | E6: 286
A7: 8370RT | B7: 0 | C7: 0 | D7: 370 | E7: 308
A9: Transmission
A10: e23 | B10: 12410.52 | C10: 0.718
A11: IVT | B11: 12752.52 | C11: 0.72
A13: Fuel level | B13: Diesel + DEF
A14: Empty | B14: 0 | C14: 0.475
A15: Half | B15: =B16/2 -> 337.34 | C15: 0.475 | E15: diesel volume of 758L at .85kg/L
A16: Full | B16: =(758*0.85)+(28*1.085) -> 674.68 | C16: 0.475 | E16: def volume of 28 L at 1.085 kg/L
A18: Rear axle
A19: 120 in | B19: 918.71 | C19: 0 | E19: medium, NA 90%
A20: 160 in | B20: 1461.3 | C20: 0 | E20: NA only
A22: Rear drive wheels
A23: Narrow | B23: 794.13 | C23: 0
A24: Wide | B24: 1259.73 | C24: 0
A26: Tracks
A27: 16 in, 4500 Series | B27: =368.3*2 -> 736.6 | C27: 0.5
A28: 16 in, 6500 Series | B28: =435.4*2 -> 870.8 | C28: 0.5
A29: 18 in, 4500 Series | B29: =372.9*2 -> 745.8 | C29: 0.5
A30: 18 in, 6500 Series | B30: =473*2 -> 946 | C30: 0.5
A31: 24 in, 4500 Series | B31: =487.6*2 -> 975.2 | C31: 0.5
A32: 25 in, 4500 Series | B32: =509*2 -> 1018 | C32: 0.5
A33: 25 in, 6500 Series | B33: =626*2 -> 1252 | C33: 0.5
A34: 30 in, 4500 Series | B34: =615.1*2 -> 1230.2 | C34: 0.5
A35: 30 in, 6500 Series | B35: =739*2 -> 1478 | C35: 0.5
A37: Front Weight Support
A38: Not Included | B38: 0 | C38: 1.79165
A39: Included | B39: 173 | C39: 1.79165
A41: Front Suitcase Weights
A42: None | B42: 0 | C42: 1.905
A43: 4 | B43: =43*A43 -> 172 | C43: 1.905
A44: 8 | B44: =43*A44 -> 344 | C44: 1.905
A45: 12 | B45: 516 | C45: 1.905
A46: 16 | B46: 688 | C46: 1.905
A47: 22 | B47: =43*A47 -> 946 | C47: 1.905
A48: 22 + 10 side engine | B48: =43*32 -> 1376 | C48: 1.73
A50: Idler Weights
A51: 36 kg
A52: None | B52: 0 | C52: 1
A53: One pair | B53: 72 | C53: 1
A54: Two pairs | B54: 144 | C54: 1
A55: 72 kg
A56: None | B56: 0 | C56: 1
A57: One pair | B57: 144 | C57: 1
A58: Two pairs | B58: =144*2 -> 288 | C58: 1
A59: Three pairs | B59: =144*3 -> 432 | C59: 1
A60: Four pairs | B60: =144*4 -> 576 | C60: 1
A61: Five pairs | B61: =144*5 -> 720 | C61: 1
A62: Six pairs | B62: =144*6 -> 864 | C62: 1
A63: Seven pairs | B63: =144*7 -> 1008 | C63: 1
A64: Eight pairs | B64: =144*8 -> 1152 | C64: 1
A65: 205 kg
A66: None | B66: 0 | C66: 1
A67: One pair | B67: 410 | C67: 1
A68: Two pairs | B68: =410*2 -> 820 | C68: 1
